[Event "German Masters 2022"]
[Site "Magdeburg"]
[Date "2022.08.21"]
[Round "6.2"]
[White "Rosner, Jonas"]
[Black "Huschenbeth, Niclas"]
[Result "1/2-1/2"]
[ECO "E04"]
[WhiteElo "2478"]
[BlackElo "2610"]
[Annotator "TA"]
[PlyCount "81"]
[EventDate "2022.08.16"]
[EventType "tourn"]
[EventCountry "GER"]
[SourceTitle "playchess.com"]
[Source "ChessBase"]
[SourceQuality "1"]
[TimeControl "40/5400+30:1800+30"]

{[%evp 11,81,33,27,10,31,14,15,9,10,10,11,4,8,5,5,6,11,0,0,7,0,0,0,0,0,0,0,-2,-2,-2,-2,-2,0,-66,-33,-26,-3,-18,-4,-8,-2,-46,-43,-63,-46,-54,-49,-81,-26,-54,0,0,60,39,216,220,209,68,127,0,0,0,0,0,0,0,0,0,0,0,0,0]} 1. d4 Nf6 {[%emt 0:00:36]} 2. c4 {[%emt 0:00:13]} e6 {[%emt 0:00:04]} 3. g3 {[%emt 0:00:07]} d5 {[%emt 0:00:04]} 4. Bg2 {[%emt 0:00:08]} dxc4 {[%emt 0:00:05]} 5. Nf3 {[%emt 0:00:20]} Bb4+ {[%emt 0:00:08]} 6. Bd2 {[%emt 0:00:33]} a5 {[%emt 0:00:27]} 7. a3 {[%emt 0:00:50] E04: Open Catalan: 5 Nf3.} Bxd2+ {[%emt 0:01:08]} 8. Nbxd2 {[%emt 0:00:20]} b5 {[%emt 0:00:59]} 9. b3 {[%emt 0:00:51]} cxb3 {[%emt 0:00:23]} 10. Qxb3 {[%emt 0:00:23]} c6 {[%emt 0:00:16]} 11. O-O {[%emt 0:00:38][%mdl 1024] White has compensation.} O-O {[%emt 0:00:05]} 12. Qb2 {[%emt 0:02:17]} Nbd7 {[%emt 0:14:06]} 13. Rfc1 {[%emt 0:01:54]} Qb6 {[%emt 0:01:51] [#]} 14. Ne1 $146 {[%emt 0:02:36][%cal Bf3e1,Be1d3,Bd3c5][%mdl 32]} ({Predecessor:} 14. Nc4 bxc4 {0-1 (14) Kazakovskiy,V (2524)-Papp,L (2399) Chess.com INT 2022}) 14... Nd5 {[%emt 0:07:15]} 15. Nd3 {[%emt 0:02:33]} Ba6 {[%emt 0:01:34]} 16. Nb3 {[%emt 0:16:41]} Rfd8 {[%emt 0:09:06]} 17. Nbc5 {[%emt 0:05:01]} Nxc5 {[%emt 0:00:47]} 18. Nxc5 {[%emt 0:00:37]} Bc8 {[%emt 0:09:43]} 19. e3 {[%emt 0:11:53]} Bd7 {[%emt 0:00:59]} 20. Rab1 {[%emt 0:01:44]} Be8 {[%emt 0:01:36]} 21. h4 {[%emt 0:01:49]} Qc7 {[%emt 0:06:39]} 22. Be4 {[%emt 0:14:25]} ({White should play} 22. e4 $11 Nb6 23. e5) 22... Qe7 {[%emt 0:04:10]} (22... Nxe3 $5 23. fxe3 Qxg3+ 24. Kf1 (24. Kh1 Qh3+ 25. Qh2 Qxe3 $17) 24... Qxe3 $15) 23. Nd3 {[%emt 0:04:09]} Rdc8 {[%emt 0:05:31]} 24. Rc2 {[%emt 0:02:16]} Rab8 {[%emt 0:05:32]} 25. Qc1 {[%emt 0:01:39]} Qd6 {[%emt 0:03:23]} 26. Bf3 {[%emt 0:04:42]} f6 {[%emt 0:04:05]} 27. h5 {[%emt 0:04:30]} Nb6 {[%emt 0:03:13]} 28. Nc5 {[%emt 0:02:46]} Nc4 {[%emt 0:03:05]} 29. a4 {[%emt 0:01:33]} e5 {[%emt 0:09:14]} ({Black should try} 29... h6 $1 $17) 30. Na6 {[%emt 0:09:46]} Na3 {[%emt 0:02:48]} (30... Ra8 $15 31. axb5 cxb5 $1 32. Bxa8 Rxa8 33. Rxc4 bxc4 34. Qxc4+ Bf7) 31. Nxb8 $11 {[%emt 0:00:51]} Nxc2 {[%emt 0:00:50]} ({Better is} 31... Rxb8 $11 32. dxe5 Qd3) 32. Nxc6 $1 $14 {[%emt 0:02:18]} ({Of course not} 32. Qxc2 Rxb8 33. axb5 cxb5 34. Qa2+ Kf8 $11) 32... Bxc6 {[%emt 0:02:58]} (32... Rxc6 $14 33. Bxc6 Qxc6 34. axb5 Qe4) 33. Qxc2 $18 {[%emt 0:00:10]} exd4 {[%emt 0:03:37]} 34. Bxc6 {[%emt 0:03:47]} ({Resist} 34. axb5 Bd7 35. Qd2 Rb8 36. exd4 Rxb5 37. Rxb5 Bxb5) (34. exd4 $18 {Hoping for Rc1.} Bd7 35. Qa2+ Be6 36. d5) 34... Rxc6 $11 {[%emt 0:00:01][%mdl 4096] Endgame [#] KQR-KQR} (34... Qxc6 $14 35. Qxc6 Rxc6) 35. Qb3+ {[%emt 0:00:24]} ({White has to play} 35. Qe4 $1 $16 {[%cal Re4e8] Strongly threatening Qe8+.} Rc3 36. exd4) 35... Qe6 {[%emt 0:00:32] The position is equal.} 36. axb5 {[%emt 0:01:27]} Rc1+ {[%emt 0:00:42]} 37. Kg2 {[%emt 0:00:13]} Qxb3 {[%emt 0:00:03]} 38. Rxb3 {[%emt 0:00:03]} dxe3 {[%emt 0:00:16]} 39. fxe3 {[%emt 0:00:19]} a4 {[%emt 0:01:12]} 40. b6 {[%emt 0:01:40] Threatens to win with b7.} Rc8 {[%emt 0:00:03]} (40... axb3 $2 41. b7 Rc2+ 42. Kf3 $18) 41. Ra3 {[%emt 0:31:52] Weighted Error Value: White=0.16 (very precise) /Black=0.16 (very precise)} 1/2-1/2

[Event "German Masters 2022"]
[Site "Magdeburg"]
[Date "2022.08.21"]
[Round "6.3"]
[White "Koelle, Tobias"]
[Black "Braun, Arik"]
[Result "0-1"]
[ECO "E11"]
[WhiteElo "2436"]
[BlackElo "2594"]
[Annotator "TA"]
[PlyCount "108"]
[EventDate "2022.08.16"]
[EventType "tourn"]
[EventCountry "GER"]
[SourceTitle "playchess.com"]
[Source "ChessBase"]
[SourceQuality "1"]
[TimeControl "40/5400+30:1800+30"]

{[%evp 21,108,26,65,34,52,50,52,39,43,33,48,0,0,0,0,0,0,0,0,-22,-22,-22,-18,-27,-27,-43,-44,-84,-75,-80,-81,-80,-78,-85,-85,-89,-78,-79,-62,-83,-78,-79,-72,-91,-88,-170,-170,-170,-170,-170,-170,-170,-170,-180,-180,-1742,-1620,-1109,-605,-517,-187,-183,-180,-180,-180,-180,-165,-173,-172,-173,-173,-175,-173,-173,-173,-375,-367,-351,-356,-1033,-803,-5189,-2943,-6540,-12824,-5710,-5385,-12830,-1457]} 1. d4 {[%emt 0:00:03]} Nf6 {[%emt 0:00:06]} 2. c4 {[%emt 0:00:05]} e6 {[%emt 0:00:05]} 3. Nf3 {[%emt 0:00:05]} Bb4+ {[%emt 0:00:04]} 4. Nbd2 {[%emt 0:00:50]} b6 {[%emt 0:00:23]} 5. a3 {[%emt 0:00:10]} Bxd2+ {[%emt 0:00:08]} 6. Qxd2 {[%emt 0:00:10]} Bb7 {[%emt 0:00:07]} 7. e3 {[%emt 0:00:06]} d6 {[%emt 0:01:00]} 8. Be2 {[%emt 0:00:05]} Nbd7 {[%emt 0:01:11]} 9. O-O {[%emt 0:01:25]} O-O {[%emt 0:02:13]} 10. b4 {[%emt 0:00:33]} Qe7 {[%emt 0:01:14]} 11. Bb2 {[%emt 0:00:31]} c5 {[%emt 0:01:18]} 12. Rad1 {[%emt 0:09:35] E14: Queen's Indian: Classical Variation (4 e3).} Ne4 {[%emt 0:10:43]} 13. Qc2 {[%emt 0:04:29]} Rac8 {[%emt 0:08:33] [#]} 14. dxc5 $146 {[%emt 0:14:21] White is slightly better.} ({Predecessor:} 14. Qb3 Rfd8 15. Ba1 Ng5 16. d5 exd5 17. cxd5 Nxf3+ 18. gxf3 f6 19. Kh1 Ne5 20. Rg1 Qf7 {1-0 (75) Erdos,V (2589)-Berczes,C (2397) Zalakaros 2010}) 14... dxc5 {[%emt 0:04:51]} 15. b5 {[%emt 0:05:54]} Rfd8 {[%emt 0:13:55]} 16. Ne5 {[%emt 0:11:29]} (16. Bd3 $14 f5 17. Rfe1) 16... Nxe5 $11 {[%emt 0:06:02]} 17. Bxe5 {[%emt 0:00:03]} f6 {[%emt 0:01:28]} 18. Bb2 {[%emt 0:01:26]} Rxd1 {[%emt 0:01:03]} 19. Rxd1 {[%emt 0:00:09]} Rd8 {[%emt 0:00:57]} 20. Rxd8+ {[%emt 0:08:46]} Qxd8 {[%emt 0:00:03]} 21. Bd3 {[%emt 0:06:42] [#]} h6 $1 {[%emt 0:01:06]} 22. f3 {[%emt 0:04:54]} (22. f4 f5) 22... Nd6 {[%emt 0:00:24]} 23. Kf2 {[%emt 0:09:14]} e5 {[%emt 0:01:25]} 24. Be2 {[%emt 0:04:06]} Qe7 {[%emt 0:01:32]} 25. a4 {[%emt 0:02:34]} Bc8 {[%emt 0:04:06][%cal Bb7c8,Bc8e6,Be6g8][%mdl 32]} 26. a5 {[%emt 0:00:56]} Be6 {[%emt 0:00:46]} 27. axb6 {[%emt 0:01:10]} axb6 {[%emt 0:00:05]} 28. Qa4 {[%emt 0:00:34]} Qd8 {[%emt 0:01:06]} 29. Bc1 {[%emt 0:05:09]} Kh8 {[%emt 0:00:44]} 30. Qd1 {[%emt 0:03:10]} Qb8 {[%emt 0:03:20] Black is more active.} 31. Qa4 {[%emt 0:00:36]} Bg8 {[%emt 0:00:41]} 32. e4 {[%emt 0:01:32]} Qd8 {[%emt 0:03:07]} 33. Kf1 {[%emt 0:01:55] [#]} (33. Ke1 $17) 33... Nxc4 $1 $19 {[%emt 0:01:37][%mdl 512]} 34. Bxc4 {[%emt 0:02:48]} Qd4 {[%emt 0:00:10]} 35. Bb3 {[%emt 0:00:34] Strongly threatening Qxd4.} Qd3+ {[%emt 0:00:43]} 36. Kf2 {[%emt 0:00:27] Bxg8 is the strong threat.} Bxb3 {[%emt 0:00:19][%mdl 4096] Endgame KQB-KQB} 37. Qa8+ {[%emt 0:01:02]} Kh7 {[%emt 0:00:06]} 38. Be3 $2 {[%emt 0:00:21]} (38. Qa3) 38... Bc4 {[%emt 0:00:30]} 39. Qa4 {[%emt 0:01:19] Prevents Qc2+.} Qe2+ {[%emt 0:05:17]} 40. Kg3 {[%emt 0:00:01]} Bxb5 $2 {[%emt 0:00:39]} (40... Bd3 41. Bf2 Qd2) 41. Qa3 {[%emt 0:01:32]} Qc2 {[%emt 0:05:03] aiming for ...Bf1.} 42. Qa1 {[%emt 0:02:32] Against Bf1} Qd3 {[%emt 0:05:07]} 43. Qc1 {[%emt 0:00:30]} Bd7 {[%emt 0:00:56]} 44. h3 {[%emt 0:01:24]} Ba4 {[%emt 0:03:21]} 45. Bf2 {[%emt 0:01:56]} Qc2 {[%emt 0:01:06]} 46. Qe3 {[%emt 0:01:50]} Kg6 {[%emt 0:00:23]} 47. Kh2 {[%emt 0:00:44]} Kf7 {[%emt 0:00:51]} 48. f4 $2 {[%emt 0:01:18]} (48. Qe1 {was necessary.}) 48... Bc6 {[%emt 0:01:53]} 49. fxe5 {[%emt 0:01:34]} Qxe4 {[%emt 0:00:43]} ({But not} 49... fxe5 $2 50. Qf3+ Kg8 51. Bh4 $19) 50. Qxe4 {[%emt 0:00:08]} (50. Qb3+ Bd5 51. Qg3) 50... Bxe4 {[%emt 0:00:03] Black is clearly winning.} 51. exf6 {[%emt 0:01:14]} Kxf6 {[%emt 0:01:56] KB-KB} 52. g4 {[%emt 0:01:56]} Ke5 {[%emt 0:01:18]} 53. Kg3 {[%emt 0:00:31]} Kd5 {[%emt 0:00:49]} 54. Kf4 {[%emt 0:00:10]} b5 {[%emt 0:00:39] Weighted Error Value: White=0.76/Black=0.22 (precise)} (54... g5+ $142 55. Ke3 b5) 0-1

[Event "German Masters 2022"]
[Site "Magdeburg"]
[Date "2022.08.21"]
[Round "6.4"]
[White "Engel, Luis"]
[Black "Svane, Frederik"]
[Result "1/2-1/2"]
[ECO "C26"]
[WhiteElo "2558"]
[BlackElo "2521"]
[Annotator "TA"]
[PlyCount "66"]
[EventDate "2022.08.16"]
[EventType "tourn"]
[EventCountry "GER"]
[SourceTitle "playchess.com"]
[Source "ChessBase"]
[SourceQuality "1"]
[TimeControl "40/5400+30:1800+30"]

{[%evp 9,66,-19,8,14,12,0,13,15,15,15,15,8,10,16,16,14,9,12,12,16,11,18,46,-52,-49,-33,-40,-75,0,0,0,0,0,0,0,0,63,61,60,0,31,19,20,0,0,0,0,0,0,0,0,0,0,0,0,0,0,0,0]} 1. e4 {[%emt 0:00:02]} e5 {[%emt 0:00:13]} 2. Nc3 {[%emt 0:03:15]} Nf6 {[%emt 0:00:15]} 3. d4 {[%emt 0:00:05]} exd4 {[%emt 0:00:08]} 4. Qxd4 {[%emt 0:00:05]} Nc6 {[%emt 0:00:04]} 5. Qd3 {[%emt 0:00:04]} Bb4 {[%emt 0:00:43]} 6. Bd2 {[%emt 0:00:14] C26: Vienna Game: 2...Nf6, sidelines .} O-O {[%emt 0:00:57]} 7. O-O-O {[%emt 0:00:05]} Re8 {[%emt 0:01:54]} 8. Nge2 {[%emt 0:00:05]} d6 {[%emt 0:18:51]} 9. Bg5 {[%emt 0:00:54]} h6 {[%emt 0:03:49]} 10. Bxf6 {[%emt 0:00:43]} Qxf6 {[%emt 0:00:08]} 11. Nd5 {[%emt 0:00:06][%csl LRc7,LRf6]} Qd8 {[%emt 0:00:41]} (11... Qxf2 12. Nxc7 Be6 13. Qg3 Qxg3 14. Nxg3 $16 (14. hxg3 Bg4 $14)) 12. Nxb4 {[%emt 0:00:46]} Nxb4 {[%emt 0:00:11]} 13. Qd2 {[%emt 0:01:32]} a5 {[%emt 0:03:36][%cal Ba7a5,Ba5b4][%mdl 32] [#]} ({But not} 13... Rxe4 14. f3 Rc4 15. Nd4 Nxa2+ 16. Kb1 $16) (13... Nxa2+ $2 14. Kb1 $16) 14. Nc3 $146 {[%emt 0:03:04]} ({Predecessor:} 14. a3 Na6 15. Nc3 Nc5 16. f3 Bd7 17. h4 Qb8 18. g4 b5 19. g5 b4 20. Nd5 bxa3 21. bxa3 {1-0 (26) Mamedyarov,S (2782)-Koneru,H (2586) chess24.com INT 2021}) 14... Be6 {[%emt 0:05:07]} 15. a3 {[%emt 0:04:53]} Qf6 {[%emt 0:12:12]} 16. axb4 {[%emt 0:30:33]} (16. Kb1 $14) 16... axb4 $15 {[%emt 0:00:06]} 17. Nb1 {[%emt 0:00:04]} Ra1 $1 {[%emt 0:01:37][%mdl 1024] And now ...Ba2 would win. Black has compensation.} 18. b3 {[%emt 0:03:27] [#]} Rea8 {[%emt 0:18:52]} ({Resist} 18... Ra2 19. Qd4 Qf4+ 20. Rd2 $16) ({Better is} 18... c5 $1 $17 19. Qxd6 Ra2) 19. Qd4 $11 {[%emt 0:00:13]} Qg5+ {[%emt 0:00:11]} 20. Qe3 $1 {[%emt 0:02:59] Hoping for Qxg5.} Qe5 {[%emt 0:00:07][%cal Oa1b1] ...Rxb1+! is the strong threat.} 21. Kd2 $1 {[%emt 0:02:25]} R8a2 {[%emt 0:04:48]} 22. Rc1 {[%emt 0:07:11]} Qb2 {[%emt 0:05:46]} (22... Rb2 $11 23. Bc4 Bxc4 24. bxc4 Raa2) 23. Bd3 $14 {[%emt 0:01:20][%cal Oe4e5]} Bxb3 $1 {[%emt 0:04:57][%cal Oa1b1] aiming for ...Rxb1!} 24. Rhd1 {[%emt 0:03:24]} (24. Ke2 $14) 24... c5 {[%emt 0:06:04]} 25. e5 {[%emt 0:04:05][%cal Be4e5,Be5d6,Bd6d7][%mdl 32]} c4 {[%emt 0:02:45] [#] The position is equal.} ({Don't do} 25... dxe5 26. Qxc5 Be6 27. Ke1 $16) 26. exd6 $1 {[%emt 0:01:32][%cal Re3e8]} cxd3 {[%emt 0:00:25]} 27. Qxd3 {[%emt 0:03:44] Black must now prevent d7.} Qf6 {[%emt 0:01:53]} 28. d7 {[%emt 0:12:14]} Qxf2+ {[%emt 0:00:08]} 29. Qe2 {[%emt 0:00:04]} Qd4+ {[%emt 0:00:07]} 30. Ke1 {[%emt 0:00:20] Really sharp!} Qg1+ {[%emt 0:00:04]} 31. Kd2 {[%emt 0:00:17]} Qd4+ {[%emt 0:00:04]} 32. Ke1 {[%emt 0:00:04]} Qg1+ {[%emt 0:00:05]} 33. Kd2 {[%emt 0:00:21]} Qd4+ {Weighted Error Value: White=0.10 (very precise) /Black=0.12 (very precise)} 1/2-1/2

[Event "German Masters 2022"]
[Site "Magdeburg"]
[Date "2022.08.21"]
[Round "6.5"]
[White "Fridman, Daniel"]
[Black "Kollars, Dmitrij"]
[Result "1/2-1/2"]
[ECO "D63"]
[WhiteElo "2599"]
[BlackElo "2648"]
[Annotator "TA"]
[PlyCount "63"]
[EventDate "2022.08.16"]
[EventType "tourn"]
[EventCountry "GER"]
[SourceTitle "playchess.com"]
[Source "ChessBase"]
[SourceQuality "1"]
[TimeControl "40/5400+30:1800+30"]

{[%evp 19,63,0,10,0,0,0,10,0,0,0,0,0,0,0,1,3,0,-12,-12,-12,-13,-14,-13,-18,0,0,0,0,0,0,0,0,0,0,0,0,0,0,0,0,0,0,0,0,0,0]} 1. d4 {[%emt 0:00:08]} Nf6 {[%emt 0:02:51]} 2. c4 {[%emt 0:00:07]} e6 {[%emt 0:00:05]} 3. Nf3 {[%emt 0:00:07]} d5 {[%emt 0:00:06]} 4. Nc3 {[%emt 0:00:05]} Nbd7 {[%emt 0:00:19]} 5. Bg5 {[%emt 0:01:35]} Be7 {[%emt 0:00:42]} 6. e3 {[%emt 0:00:44]} O-O {[%emt 0:00:54]} 7. Rc1 {[%emt 0:05:41]} h6 {[%emt 0:02:03]} 8. Bh4 {[%emt 0:00:25]} c6 {[%emt 0:00:16]} 9. a3 {[%emt 0:04:17]} Ne4 {[%emt 0:05:18]} 10. Bxe7 {[%emt 0:03:33]} Qxe7 {[%emt 0:00:47] The position is equal.} 11. Be2 {[%emt 0:13:05] D63: Queen's Gambit Declined: Classical: 7 Rc1.} Nxc3 {[%emt 0:02:14]} 12. Rxc3 {[%emt 0:00:08]} dxc4 {[%emt 0:01:06]} 13. Bxc4 {[%emt 0:02:08]} b6 {[%emt 0:05:48]} 14. O-O {[%emt 0:05:55]} Bb7 {[%emt 0:05:49][%cal Bc8b7,Bb7e4,Be4d3,Bd3e2,Be2f3][%mdl 32]} 15. Be2 {[%emt 0:04:00]} c5 {[%emt 0:02:01] [#]} 16. Qa4 $146 {[%emt 0:01:54]} ({Predecessor:} 16. Bb5 Rfd8 17. Rd3 a6 18. Bxd7 Qxd7 19. Rd2 c4 20. Ne5 Qd5 21. f3 b5 22. e4 {0-1 (41) Khoroshev,N (2366)-Rastbod,A (2321) Chess.com INT 2020}) 16... e5 {[%emt 0:10:14] White must now prevent ...exd4.} 17. dxc5 {[%emt 0:14:41]} Nxc5 {[%emt 0:00:16]} 18. Qc2 {[%emt 0:00:13]} Be4 {[%emt 0:15:27]} 19. Qc1 {[%emt 0:00:30]} Rfd8 {[%emt 0:01:26]} 20. b4 {[%emt 0:05:51]} Nd3 {[%emt 0:00:58]} 21. Bxd3 Rxd3 {[%emt 0:03:36]} 22. Rxd3 {[%emt 0:07:44]} Bxd3 {[%emt 0:00:05]} 23. Rd1 {[%emt 0:02:58]} Be2 {[%emt 0:04:12]} 24. Qc6 {[%emt 0:04:50]} Rd8 {[%emt 0:00:36]} 25. Rxd8+ {[%emt 0:00:17]} Qxd8 $11 {[%emt 0:00:06][%mdl 4096] Endgame KQB-KQN} 26. h3 {[%emt 0:02:12]} Qd1+ {[%emt 0:04:04]} 27. Kh2 {[%emt 0:01:09]} Bxf3 {[%emt 0:00:08]} 28. Qc8+ {[%emt 0:01:20]} Kh7 {[%emt 0:00:05]} 29. Qf5+ {[%emt 0:00:06]} Kg8 {[%emt 0:00:04] [#] And now ...Bh5 would win.} 30. Qc8+ {[%emt 0:00:05]} Kh7 {[%emt 0:00:04]} 31. Qf5+ {[%emt 0:00:06]} Kg8 {[%emt 0:00:03] Strongly threatening ...Bh5.} 32. Qc8+ {An interesting draw.  Weighted Error Value: White=0.01 (flawless) /Black=0.00 (flawless)} 1/2-1/2

[Event "German Masters 2022"]
[Site "Magdeburg"]
[Date "2022.08.22"]
[Round "7.1"]
[White "Kollars, Dmitrij"]
[Black "Keymer, Vincent"]
[Result "1/2-1/2"]
[ECO "A29"]
[WhiteElo "2648"]
[BlackElo "2686"]
[Annotator "TA"]
[PlyCount "80"]
[EventDate "2022.08.16"]
[EventType "tourn"]
[EventCountry "GER"]
[SourceTitle "playchess.com"]
[Source "ChessBase"]
[SourceQuality "1"]
[TimeControl "40/5400+30:1800+30"]

{[%evp 21,80,0,22,20,20,14,16,7,14,6,22,34,20,4,7,0,0,0,0,0,0,0,0,0,12,8,21,7,15,16,7,0,0,0,0,0,0,0,0,0,0,0,0,0,0,0,0,0,0,0,0,0,0,0,0,0,0,0,0,0,0]} 1. c4 {[%emt 0:06:53]} Nf6 {[%emt 0:00:06]} 2. Nc3 {[%emt 0:00:08]} e5 {[%emt 0:00:23][%cal Be7e5,Be5e4][%mdl 32]} 3. Nf3 {[%emt 0:00:18]} Nc6 {[%emt 0:00:05]} 4. g3 {[%emt 0:00:12]} Bb4 {[%emt 0:01:27]} 5. Bg2 {[%emt 0:00:18]} O-O {[%emt 0:01:36]} 6. O-O {[%emt 0:00:16]} e4 {[%emt 0:03:26]} 7. Ng5 {[%emt 0:00:14]} Bxc3 {[%emt 0:00:04]} 8. bxc3 {[%emt 0:00:04]} Re8 {[%emt 0:00:50]} 9. f3 {[%emt 0:00:13]} exf3 {[%emt 0:00:13]} 10. Nxf3 {[%emt 0:00:10]} Qe7 {[%emt 0:01:20] is the new trend.} 11. e3 {[%emt 0:00:12]} d6 {[%emt 0:07:57]} 12. d3 {[%emt 0:00:24] A29: English Opening: Four Knights Variation with 4 g3.} Ne5 {[%emt 0:01:12]} 13. Nd4 {[%emt 0:00:23]} c5 {[%emt 0:01:53]} 14. Nf5 {[%emt 0:00:13]} Bxf5 {[%emt 0:00:04]} 15. Rxf5 {[%emt 0:00:04]} d5 {[%emt 0:01:26]} 16. cxd5 {[%emt 0:00:25] Strongly threatening e4.} c4 $1 {[%emt 0:00:04]} 17. dxc4 {[%emt 0:01:02] The position is equal.} (17. d4 {with more complications.} Nd3 18. Bd2 Ne4 19. Bxe4 Qxe4 20. Qf3) 17... Nxc4 {[%emt 0:09:33] Pair of Knights!} 18. Qd4 {[%emt 0:00:34]} (18. Qd3 {looks sharper.} Nxe3 19. d6 Rad8 20. dxe7 Rxd3 21. Bxe3 Rxe3 22. Ra5) 18... Nxe3 {[%emt 0:13:47]} 19. Bxe3 {[%emt 0:00:40]} Qxe3+ {[%emt 0:00:04]} 20. Qxe3 {[%emt 0:00:04]} Rxe3 {[%emt 0:00:05]} 21. c4 {[%emt 0:00:04]} b6 {[%emt 0:09:07]} 22. a4 {[%emt 0:04:06] [#]} Kf8 $146 {[%emt 0:13:43]} ({Predecessor:} 22... Rd8 23. a5 Kf8 24. axb6 {½-½ (24) Roesch M,H (2371)-Roebuck,D (2340) ICCF email 2017}) 23. a5 {[%emt 0:06:54] [#] Hoping for axb6.} Rc8 {[%emt 0:01:20]} 24. Bf1 {[%emt 0:05:27]} Ne8 {[%emt 0:01:26]} 25. axb6 {[%emt 0:07:08]} axb6 {[%emt 0:00:04]} 26. Rb1 {[%emt 0:07:20]} Nd6 {[%emt 0:01:38][%csl LRc4,LRf5]} 27. Rf4 {[%emt 0:00:44]} g5 {[%emt 0:03:59]} 28. Rf6 {[%emt 0:05:56]} Nxc4 {[%emt 0:02:17]} 29. Bxc4 {[%emt 0:10:15]} Rxc4 {[%emt 0:00:14]} 30. Rbxb6 $11 {[%emt 0:00:25][%mdl 4096] Endgame KRR-KRR} Rc2 {[%emt 0:05:28]} 31. Rf2 {[%emt 0:01:31]} Ree2 {[%emt 0:02:14]} 32. Rxe2 {[%emt 0:03:12]} Rxe2 {[%emt 0:00:07] KR-KR} 33. g4 {[%emt 0:00:19]} Ke7 {[%emt 0:00:40]} 34. Rh6 {[%emt 0:00:18]} Rd2 {[%emt 0:00:04]} 35. Rxh7 {[%emt 0:00:07]} Rxd5 {[%emt 0:00:03]} 36. Kg2 {[%emt 0:00:08]} Rd4 {[%emt 0:00:05]} 37. Kf3 {[%emt 0:00:08]} Rf4+ {[%emt 0:00:05]} 38. Kg3 {[%emt 0:00:04]} Ra4 {[%emt 0:00:04]} 39. h4 {[%emt 0:00:08]} Ra3+ {[%emt 0:00:03]} 40. Kg2 {[%emt 0:00:04]} gxh4 {[%emt 0:00:04] An interesting draw.  Weighted Error Value: White=0.02 (flawless) /Black=0.02 (flawless)} 1/2-1/2